[Event "Late-Titled-Tuesday-Blitz-May-28-2024"]
[Site "Chess.com"]
[Date "2024.05.28"]
[Round "1"]
[White "IMRosen"]
[Black "Nekoo04"]
[Result "1-0"]
[WhiteElo "2719"]
[BlackElo "2416"]
[TimeControl "180+1"]
[EndTime "14:06:36 PDT"]
[Termination "IMRosen won by resignation"]

1. d4 {[%clk 0:03:00.9]} 1... d5 {[%clk 0:02:55.3]} 2. Bf4 {[%clk 0:02:59.4]}
2... c5 {[%clk 0:02:49.8]} 3. Nc3 {[%clk 0:02:59.4]} 3... Nf6 {[%clk 0:02:44.3]}
4. e4 {[%clk 0:02:59.1]} 4... e6 {[%clk 0:02:41.4]} 5. exd5 {[%clk 0:02:34.9]}
5... Nxd5 {[%clk 0:02:39.5]} 6. Bb5+ {[%clk 0:02:35.4]} 6... Nc6 {[%clk
0:02:24.2]} 7. Nxd5 {[%clk 0:02:18.2]} 7... Qxd5 {[%clk 0:02:18.2]} 8. Nf3
{[%clk 0:02:17.6]} 8... Qe4+ {[%clk 0:01:43.8]} 9. Be3 {[%clk 0:02:17.2]} 9...
cxd4 {[%clk 0:01:42]} 10. Qxd4 {[%clk 0:02:13.8]} 10... Qxd4 {[%clk 0:01:16.7]}
11. Nxd4 {[%clk 0:02:14]} 11... Bd7 {[%clk 0:01:17.6]} 12. Nxc6 {[%clk
0:02:13.5]} 12... bxc6 {[%clk 0:01:15.8]} 13. Bc4 {[%clk 0:02:09.3]} 13... c5
{[%clk 0:01:10.9]} 14. a4 {[%clk 0:01:51.5]} 14... Rb8 {[%clk 0:01:02]} 15. b3
{[%clk 0:01:32.8]} 15... Be7 {[%clk 0:00:48.7]} 16. O-O-O {[%clk 0:01:28.1]}
16... Bc6 {[%clk 0:00:46.6]} 17. f3 {[%clk 0:01:28.7]} 17... O-O {[%clk
0:00:44.1]} 18. Rhe1 {[%clk 0:01:24.5]} 18... Rb4 {[%clk 0:00:41.8]} 19. Bd2
{[%clk 0:01:21.5]} 19... Rb7 {[%clk 0:00:29.7]} 20. Be3 {[%clk 0:01:00.2]} 20...
Rfb8 {[%clk 0:00:25.3]} 21. Rd3 {[%clk 0:00:54.5]} 21... Rb4 {[%clk 0:00:10.6]}
22. Bf4 {[%clk 0:00:53.2]} 22... R8b7 {[%clk 0:00:08]} 23. Bd2 {[%clk
0:00:47.9]} 23... Rxc4 {[%clk 0:00:05.2]} 24. bxc4 {[%clk 0:00:47.2]} 24... Bxa4
{[%clk 0:00:05.3]} 25. Be3 {[%clk 0:00:45.6]} 25... h5 {[%clk 0:00:04.1]} 26.
Ra3 {[%clk 0:00:44]} 26... Bc6 {[%clk 0:00:04.1]} 27. Ra6 {[%clk 0:00:41.7]}
27... Rc7 {[%clk 0:00:02.6]} 28. Bf4 {[%clk 0:00:39.7]} 28... Rc8 {[%clk
0:00:02.2]} 29. Rxa7 {[%clk 0:00:40.2]} 29... Bf6 {[%clk 0:00:02.9]} 30. Be5
{[%clk 0:00:40.1]} 30... Bxe5 {[%clk 0:00:02.2]} 31. Rxe5 {[%clk 0:00:41]} 31...
g6 {[%clk 0:00:02.6]} 32. Rxc5 {[%clk 0:00:41.2]} 1-0

[Event "Late-Titled-Tuesday-Blitz-May-28-2024"]
[Site "Chess.com"]
[Date "2024.05.28"]
[Round "1"]
[White "nihalsarin"]
[Black "Valiyev_Shahin"]
[Result "1-0"]
[WhiteElo "3250"]
[BlackElo "2538"]
[TimeControl "180+1"]
[EndTime "14:06:39 PDT"]
[Termination "nihalsarin won by resignation"]

1. d4 {[%clk 0:02:57.1]} 1... d5 {[%clk 0:02:58.8]} 2. c4 {[%clk 0:02:52.3]}
2... e6 {[%clk 0:02:58.9]} 3. Nc3 {[%clk 0:02:47.7]} 3... Be7 {[%clk 0:02:58.7]}
4. Nf3 {[%clk 0:02:37.7]} 4... Nf6 {[%clk 0:02:58.4]} 5. e3 {[%clk 0:02:33.4]}
5... O-O {[%clk 0:02:56.4]} 6. Bd3 {[%clk 0:02:34.1]} 6... a6 {[%clk 0:02:55.9]}
7. b3 {[%clk 0:02:30.7]} 7... b6 {[%clk 0:02:53.7]} 8. O-O {[%clk 0:02:30.8]}
8... Bb7 {[%clk 0:02:54.3]} 9. Bb2 {[%clk 0:02:31.5]} 9... Nbd7 {[%clk 0:02:54]}
10. cxd5 {[%clk 0:02:31]} 10... exd5 {[%clk 0:02:51.6]} 11. Rc1 {[%clk
0:02:30.9]} 11... Bd6 {[%clk 0:02:51.8]} 12. Ne2 {[%clk 0:02:30.9]} 12... Re8
{[%clk 0:02:44.7]} 13. Ng3 {[%clk 0:02:31.4]} 13... g6 {[%clk 0:02:44]} 14. Qc2
{[%clk 0:02:32.1]} 14... Ne4 {[%clk 0:02:30.8]} 15. Ne5 {[%clk 0:02:28.6]} 15...
Nxg3 {[%clk 0:01:45.4]} 16. hxg3 {[%clk 0:02:27.2]} 16... Nxe5 {[%clk
0:01:45.3]} 17. dxe5 {[%clk 0:02:28.1]} 17... Bxe5 {[%clk 0:01:46.2]} 18. Bxe5
{[%clk 0:02:28]} 18... Rxe5 {[%clk 0:01:47.1]} 19. Qxc7 {[%clk 0:02:28.4]} 19...
Re7 {[%clk 0:01:47.8]} 20. Qf4 {[%clk 0:02:27.3]} 20... Rc8 {[%clk 0:01:38.7]}
21. Qd4 {[%clk 0:02:15.5]} 21... Rxc1 {[%clk 0:01:19.1]} 22. Rxc1 {[%clk
0:02:16.4]} 22... Rc7 {[%clk 0:01:19.4]} 23. Rd1 {[%clk 0:02:13.1]} 23... Qd6
{[%clk 0:01:19.5]} 24. Bc4 {[%clk 0:02:07.4]} 24... Qc5 {[%clk 0:01:11.2]} 25.
Qf6 {[%clk 0:01:52.8]} 25... Rc8 {[%clk 0:00:54.1]} 26. Be2 {[%clk 0:01:50.7]}
26... a5 {[%clk 0:00:33.1]} 27. Bg4 {[%clk 0:01:46]} 27... Re8 {[%clk
0:00:28.5]} 28. Bf3 {[%clk 0:01:44.3]} 28... b5 {[%clk 0:00:25.1]} 29. Qb2
{[%clk 0:01:36.4]} 29... b4 {[%clk 0:00:22.7]} 30. Rc1 {[%clk 0:01:36.4]} 30...
Qb6 {[%clk 0:00:20.6]} 31. Qd2 {[%clk 0:01:35.4]} 31... Qd6 {[%clk 0:00:18]} 32.
Qd4 {[%clk 0:01:35.2]} 32... h5 {[%clk 0:00:16]} 33. Rc5 {[%clk 0:01:35.7]}
33... Rc8 {[%clk 0:00:01]} 34. Rxa5 {[%clk 0:01:20.9]} 34... Rc1+ {[%clk
0:00:01]} 35. Kh2 {[%clk 0:01:20.8]} 35... h4 {[%clk 0:00:01.3]} 36. Qxh4 {[%clk
0:01:13.2]} 36... Qc7 {[%clk 0:00:02]} 37. Qxb4 {[%clk 0:01:07.3]} 37... Rf1
{[%clk 0:00:02.8]} 38. Rc5 {[%clk 0:00:58.6]} 38... Qe7 {[%clk 0:00:02.5]} 39.
Rc8+ {[%clk 0:00:58.1]} 39... Kh7 {[%clk 0:00:02.3]} 40. Qxe7 {[%clk 0:00:58]}
1-0

[Event "Late-Titled-Tuesday-Blitz-May-28-2024"]
[Site "Chess.com"]
[Date "2024.05.28"]
[Round "1"]
[White "RespectfulDaveOnYouTube"]
[Black "platy3"]
[Result "0-1"]
[WhiteElo "2480"]
[BlackElo "2878"]
[TimeControl "180+1"]
[EndTime "14:06:39 PDT"]
[Termination "platy3 won on time"]

1. e4 {[%clk 0:02:52.3]} 1... c5 {[%clk 0:02:59.6]} 2. Nf3 {[%clk 0:02:52.2]}
2... e6 {[%clk 0:02:59.7]} 3. d4 {[%clk 0:02:50.4]} 3... cxd4 {[%clk 0:03:00.6]}
4. Nxd4 {[%clk 0:02:51.3]} 4... Nc6 {[%clk 0:03:00.5]} 5. Nc3 {[%clk 0:02:50.8]}
5... Qc7 {[%clk 0:03:00.2]} 6. Be3 {[%clk 0:02:50.3]} 6... a6 {[%clk 0:03:00.3]}
7. Qf3 {[%clk 0:02:50.1]} 7... Ne5 {[%clk 0:03:00.3]} 8. Qg3 {[%clk 0:02:46.9]}
8... h5 {[%clk 0:03:00.9]} 9. h3 {[%clk 0:02:19.6]} 9... h4 {[%clk 0:02:59.4]}
10. Qh2 {[%clk 0:02:06.9]} 10... d6 {[%clk 0:02:59.7]} 11. f4 {[%clk 0:01:50.5]}
11... Nc4 {[%clk 0:02:59]} 12. Bxc4 {[%clk 0:01:51.2]} 12... Qxc4 {[%clk
0:02:59.3]} 13. O-O-O {[%clk 0:01:52.1]} 13... b5 {[%clk 0:02:59]} 14. g4 {[%clk
0:01:37.1]} 14... Bd7 {[%clk 0:02:57]} 15. Kb1 {[%clk 0:01:21.4]} 15... Rc8
{[%clk 0:02:55.7]} 16. e5 {[%clk 0:01:08.1]} 16... dxe5 {[%clk 0:02:48.7]} 17.
fxe5 {[%clk 0:01:03.4]} 17... Ne7 {[%clk 0:02:48.9]} 18. Qg2 {[%clk 0:00:48.1]}
18... Ng6 {[%clk 0:02:40.5]} 19. Rhe1 {[%clk 0:00:42.7]} 19... Bb4 {[%clk
0:02:38.1]} 20. Nde2 {[%clk 0:00:16.5]} 20... Ba5 {[%clk 0:02:26.9]} 21. Rxd7
{[%clk 0:00:10.8]} 21... Kxd7 {[%clk 0:02:26.3]} 22. Qb7+ {[%clk 0:00:11.5]}
22... Rc7 {[%clk 0:02:11]} 23. Rd1+ {[%clk 0:00:09]} 23... Ke7 {[%clk
0:02:11.3]} 24. Qxa6 {[%clk 0:00:03.9]} 24... Bb4 {[%clk 0:01:54.9]} 25. Rd4
{[%clk 0:00:02.3]} 25... Qc6 {[%clk 0:01:24.1]} 26. Qxc6 {[%clk 0:00:01.9]}
26... Rxc6 {[%clk 0:01:25]} 27. Rxb4 {[%clk 0:00:02.2]} 27... Nxe5 {[%clk
0:01:25.8]} 28. Rxb5 {[%clk 0:00:01.8]} 28... Nxg4 {[%clk 0:01:26]} 29. hxg4
{[%clk 0:00:01.7]} 29... h3 {[%clk 0:01:26.7]} 30. Bg5+ {[%clk 0:00:01.9]} 30...
f6 {[%clk 0:01:26.9]} 31. Rb7+ {[%clk 0:00:02.6]} 31... Kd6 {[%clk 0:01:27]} 32.
Bf4+ {[%clk 0:00:02.7]} 32... e5 {[%clk 0:01:27.3]} 33. Ne4+ {[%clk 0:00:02.4]}
33... Ke6 {[%clk 0:01:27.5]} 34. Bh2 {[%clk 0:00:02]} 34... Rh4 {[%clk 0:01:27]}
35. N2c3 {[%clk 0:00:01.7]} 35... Rxg4 {[%clk 0:01:26.7]} 36. b4 {[%clk
0:00:02.4]} 36... Rg2 {[%clk 0:01:26.3]} 37. Nc5+ {[%clk 0:00:02.3]} 37... Kf5
{[%clk 0:01:25.5]} 38. Bxe5 {[%clk 0:00:01.2]} 38... fxe5 {[%clk 0:01:24.6]} 39.
N3e4 {[%clk 0:00:01]} 39... h2 {[%clk 0:01:22.9]} 40. Rf7+ {[%clk 0:00:01.6]}
40... Kg6 {[%clk 0:01:22.6]} 41. Rf1 {[%clk 0:00:01]} 41... Rg1 {[%clk
0:01:23.2]} 42. Rxg1+ {[%clk 0:00:00.2]} 42... hxg1=Q+ {[%clk 0:01:22.6]} 43.
Kb2 {[%clk 0:00:01.1]} 43... Qe3 {[%clk 0:01:15.6]} 44. Nc3 {[%clk 0:00:00.9]}
44... Qd4 {[%clk 0:01:12.9]} 45. Kb3 {[%clk 0:00:01.4]} 45... Kf5 {[%clk
0:01:13.1]} 46. a3 {[%clk 0:00:00.9]} 46... g5 {[%clk 0:01:13.6]} 0-1

[Event "Late-Titled-Tuesday-Blitz-May-28-2024"]
[Site "Chess.com"]
[Date "2024.05.28"]
[Round "1"]
[White "Maus7"]
[Black "crazycheesecake"]
[Result "1-0"]
[WhiteElo "2556"]
[BlackElo "2150"]
[TimeControl "180+1"]
[EndTime "14:06:40 PDT"]
[Termination "Maus7 won by resignation"]

1. e4 {[%clk 0:02:58.9]} 1... c5 {[%clk 0:02:59.7]} 2. Nf3 {[%clk 0:02:58.4]}
2... d6 {[%clk 0:02:55.2]} 3. d4 {[%clk 0:02:57.8]} 3... cxd4 {[%clk 0:02:56.1]}
4. Nxd4 {[%clk 0:02:58.1]} 4... Nf6 {[%clk 0:02:56.8]} 5. Nc3 {[%clk 0:02:58.1]}
5... a6 {[%clk 0:02:57.3]} 6. Be3 {[%clk 0:02:57.6]} 6... e5 {[%clk 0:02:57.7]}
7. Nf3 {[%clk 0:02:57.5]} 7... Be7 {[%clk 0:02:57.3]} 8. Bc4 {[%clk 0:02:56.9]}
8... Be6 {[%clk 0:02:57.1]} 9. Bb3 {[%clk 0:02:56.4]} 9... O-O {[%clk
0:02:56.7]} 10. O-O {[%clk 0:02:56.2]} 10... Nc6 {[%clk 0:02:43.7]} 11. Bg5
{[%clk 0:02:55.3]} 11... h6 {[%clk 0:02:29.1]} 12. Bxf6 {[%clk 0:02:54.6]} 12...
Bxf6 {[%clk 0:02:29.7]} 13. Nd5 {[%clk 0:02:46.7]} 13... Be7 {[%clk 0:02:22.7]}
14. Qd3 {[%clk 0:02:33.5]} 14... Rc8 {[%clk 0:02:17.3]} 15. c3 {[%clk
0:02:32.1]} 15... Na5 {[%clk 0:02:05.4]} 16. Rad1 {[%clk 0:02:31.3]} 16... Nxb3
{[%clk 0:01:48.9]} 17. axb3 {[%clk 0:02:32.2]} 17... Re8 {[%clk 0:01:12.9]} 18.
b4 {[%clk 0:02:16]} 18... Bf8 {[%clk 0:00:48.3]} 19. Nd2 {[%clk 0:02:15.5]}
19... Qg5 {[%clk 0:00:19.1]} 20. Ne3 {[%clk 0:02:01.1]} 20... Red8 {[%clk
0:00:04.4]} 21. Ndc4 {[%clk 0:01:58]} 21... Qe7 {[%clk 0:00:02.7]} 22. Nb6
{[%clk 0:01:56.9]} 22... Rc6 {[%clk 0:00:02.7]} 23. Nbd5 {[%clk 0:01:54.8]}
23... Bxd5 {[%clk 0:00:03]} 24. Nxd5 {[%clk 0:01:53.4]} 24... Qe6 {[%clk
0:00:03]} 25. b5 {[%clk 0:01:47.8]} 25... Rcc8 {[%clk 0:00:02.6]} 26. bxa6
{[%clk 0:01:45.7]} 26... bxa6 {[%clk 0:00:03.1]} 27. Qxa6 {[%clk 0:01:46]} 27...
Qg6 {[%clk 0:00:03.2]} 28. Qd3 {[%clk 0:01:40.2]} 28... Rb8 {[%clk 0:00:02.6]}
29. b4 {[%clk 0:01:40]} 29... Rbc8 {[%clk 0:00:01.9]} 30. b5 {[%clk 0:01:39.5]}
30... Rb8 {[%clk 0:00:02.3]} 31. b6 {[%clk 0:01:39.5]} 31... Rb7 {[%clk
0:00:02.9]} 32. Ra1 {[%clk 0:01:38]} 32... Rbb8 {[%clk 0:00:01.9]} 33. Ra7
{[%clk 0:01:34.8]} 33... h5 {[%clk 0:00:02.3]} 34. Rfa1 {[%clk 0:01:25.5]} 34...
h4 {[%clk 0:00:02.3]} 35. h3 {[%clk 0:01:25.4]} 35... Qg5 {[%clk 0:00:02.1]} 36.
Qf3 {[%clk 0:01:22.8]} 36... Qg6 {[%clk 0:00:02.2]} 37. Qf5 {[%clk 0:01:12]}
37... Qxf5 {[%clk 0:00:01.8]} 38. exf5 {[%clk 0:01:12.1]} 38... f6 {[%clk
0:00:02.4]} 39. Rc7 {[%clk 0:01:07.9]} 39... Kh7 {[%clk 0:00:01.8]} 40. Nxf6+
{[%clk 0:01:07.6]} 40... Kh6 {[%clk 0:00:02.1]} 41. Nd7 {[%clk 0:01:05.4]} 41...
Rbc8 {[%clk 0:00:01.1]} 42. Rxc8 {[%clk 0:01:05.3]} 42... Rxc8 {[%clk 0:00:02]}
43. b7 {[%clk 0:01:05.2]} 43... Rd8 {[%clk 0:00:01.4]} 44. b8=Q {[%clk
0:01:03.8]} 44... Rxd7 {[%clk 0:00:01.8]} 45. Qxf8 {[%clk 0:01:03.3]} 1-0

[Event "Late-Titled-Tuesday-Blitz-May-28-2024"]
[Site "Chess.com"]
[Date "2024.05.28"]
[Round "1"]
[White "Abduzhaparov"]
[Black "moro182"]
[Result "0-1"]
[WhiteElo "2479"]
[BlackElo "2884"]
[TimeControl "180+1"]
[EndTime "14:06:41 PDT"]
[Termination "moro182 won on time"]

1. Nf3 {[%clk 0:03:00.9]} 1... g6 {[%clk 0:03:00.7]} 2. c4 {[%clk 0:03:01.6]}
2... Bg7 {[%clk 0:02:59.8]} 3. Nc3 {[%clk 0:03:01.7]} 3... d6 {[%clk 0:02:59.9]}
4. e4 {[%clk 0:03:02]} 4... Nc6 {[%clk 0:02:57.9]} 5. d4 {[%clk 0:03:01.7]} 5...
Bg4 {[%clk 0:02:55.7]} 6. Be3 {[%clk 0:03:00.8]} 6... e5 {[%clk 0:02:54.6]} 7.
d5 {[%clk 0:02:53.6]} 7... Nd4 {[%clk 0:02:54.6]} 8. Be2 {[%clk 0:02:50.9]} 8...
Bxf3 {[%clk 0:02:52.3]} 9. gxf3 {[%clk 0:02:40.1]} 9... Ne7 {[%clk 0:02:51.2]}
10. h4 {[%clk 0:02:39.5]} 10... h5 {[%clk 0:02:49.8]} 11. f4 {[%clk 0:02:39.5]}
11... c5 {[%clk 0:02:43.8]} 12. dxc6 {[%clk 0:02:30.5]} 12... bxc6 {[%clk
0:02:39.7]} 13. fxe5 {[%clk 0:02:22.9]} 13... dxe5 {[%clk 0:02:40.6]} 14. f4
{[%clk 0:02:17.2]} 14... Bh6 {[%clk 0:02:38.3]} 15. Qd2 {[%clk 0:01:43]} 15...
Qa5 {[%clk 0:02:31.1]} 16. O-O-O {[%clk 0:01:34.9]} 16... Rd8 {[%clk 0:02:21.9]}
17. Kb1 {[%clk 0:01:14.2]} 17... Ne6 {[%clk 0:02:14.2]} 18. Nd5 {[%clk
0:01:04.3]} 18... Qxd2 {[%clk 0:02:08.8]} 19. Nf6+ {[%clk 0:01:03.5]} 19... Kf8
{[%clk 0:02:08.8]} 20. Bxd2 {[%clk 0:01:01.4]} 20... Kg7 {[%clk 0:01:58.1]} 21.
Rhf1 {[%clk 0:00:38.6]} 21... Kxf6 {[%clk 0:01:54.1]} 22. fxe5+ {[%clk
0:00:36.8]} 22... Kg7 {[%clk 0:01:53.3]} 23. Bb4 {[%clk 0:00:20.5]} 23... c5
{[%clk 0:01:50.1]} 24. Ba5 {[%clk 0:00:19.2]} 24... Rxd1+ {[%clk 0:01:48.1]} 25.
Rxd1 {[%clk 0:00:20.1]} 25... Nd4 {[%clk 0:01:48.1]} 26. Bf1 {[%clk 0:00:15.2]}
26... Nec6 {[%clk 0:01:47.3]} 27. Bc7 {[%clk 0:00:13.6]} 27... Bf4 {[%clk
0:01:40.4]} 28. Bd6 {[%clk 0:00:12.8]} 28... Bxe5 {[%clk 0:01:39.5]} 29. Bxc5
{[%clk 0:00:12.5]} 29... Rc8 {[%clk 0:01:37.9]} 30. b4 {[%clk 0:00:11.2]} 30...
Ne6 {[%clk 0:01:35]} 31. Rd5 {[%clk 0:00:04.8]} 31... Nxc5 {[%clk 0:01:25.2]}
32. Rxc5 {[%clk 0:00:05.7]} 32... Bd6 {[%clk 0:01:24.7]} 33. Rd5 {[%clk
0:00:05.6]} 33... Bxb4 {[%clk 0:01:24.4]} 34. c5 {[%clk 0:00:05.1]} 34... Ne7
{[%clk 0:01:23.3]} 35. Rd7 {[%clk 0:00:04.8]} 35... Bxc5 {[%clk 0:01:23.3]} 36.
Bc4 {[%clk 0:00:04.7]} 36... Kf6 {[%clk 0:01:19.8]} 37. Bb3 {[%clk 0:00:04.8]}
37... a5 {[%clk 0:01:19.3]} 38. Rb7 {[%clk 0:00:04.9]} 38... Ba3 {[%clk
0:01:14.8]} 39. Bc2 {[%clk 0:00:03]} 39... Nc6 {[%clk 0:01:13.8]} 40. Rb6 {[%clk
0:00:02.4]} 40... Rb8 {[%clk 0:01:13.8]} 41. Rxb8 {[%clk 0:00:01.8]} 41... Nxb8
{[%clk 0:01:14.7]} 0-1

[Event "Late-Titled-Tuesday-Blitz-May-28-2024"]
[Site "Chess.com"]
[Date "2024.05.28"]
[Round "1"]
[White "Umumba_FM"]
[Black "jbking07"]
[Result "0-1"]
[WhiteElo "2626"]
[BlackElo "2368"]
[TimeControl "180+1"]
[EndTime "14:06:45 PDT"]
[Termination "jbking07 won by resignation"]

1. e4 {[%clk 0:02:57.8]} 1... c5 {[%clk 0:02:59.3]} 2. Nf3 {[%clk 0:02:57.8]}
2... Nc6 {[%clk 0:02:59.4]} 3. Bb5 {[%clk 0:02:57.7]} 3... e6 {[%clk 0:02:57.9]}
4. Bxc6 {[%clk 0:02:57.5]} 4... dxc6 {[%clk 0:02:58.8]} 5. O-O {[%clk
0:02:50.9]} 5... Nf6 {[%clk 0:02:58]} 6. Re1 {[%clk 0:02:50.1]} 6... Qc7 {[%clk
0:02:54]} 7. b3 {[%clk 0:02:47.8]} 7... e5 {[%clk 0:02:53.8]} 8. Bb2 {[%clk
0:02:47.6]} 8... Bd6 {[%clk 0:02:52.9]} 9. d3 {[%clk 0:02:45.6]} 9... O-O {[%clk
0:02:52.8]} 10. Nbd2 {[%clk 0:02:46.1]} 10... Re8 {[%clk 0:02:45.5]} 11. a4
{[%clk 0:02:44.1]} 11... a5 {[%clk 0:02:44.6]} 12. Nc4 {[%clk 0:02:39.4]} 12...
b6 {[%clk 0:02:44.9]} 13. h3 {[%clk 0:02:35]} 13... Ba6 {[%clk 0:02:44]} 14. Ne3
{[%clk 0:02:33.6]} 14... Bc8 {[%clk 0:02:40.6]} 15. Qd2 {[%clk 0:02:32.4]} 15...
Bd7 {[%clk 0:02:34.6]} 16. Nc4 {[%clk 0:02:31.5]} 16... Rad8 {[%clk 0:02:20.3]}
17. Qg5 {[%clk 0:02:25.7]} 17... h6 {[%clk 0:02:18.7]} 18. Qg3 {[%clk
0:02:18.3]} 18... Nh5 {[%clk 0:02:15.3]} 19. Qh2 {[%clk 0:02:13.9]} 19... f6
{[%clk 0:02:10.2]} 20. Bc1 {[%clk 0:02:08.2]} 20... Bf8 {[%clk 0:01:59.9]} 21.
g4 {[%clk 0:01:54]} 21... Nf4 {[%clk 0:01:59.3]} 22. Bxf4 {[%clk 0:01:54.6]}
22... exf4 {[%clk 0:02:00.1]} 23. e5 {[%clk 0:01:55]} 23... b5 {[%clk
0:01:51.9]} 24. axb5 {[%clk 0:01:52.4]} 24... cxb5 {[%clk 0:01:52.1]} 25. Nxa5
{[%clk 0:01:46.2]} 25... fxe5 {[%clk 0:01:51.9]} 26. Nd2 {[%clk 0:01:28.4]}
26... Ra8 {[%clk 0:01:49.2]} 27. b4 {[%clk 0:01:26.7]} 27... cxb4 {[%clk
0:01:45.4]} 28. Nab3 {[%clk 0:01:27]} 28... Rxa1 {[%clk 0:01:42.2]} 29. Rxa1
{[%clk 0:01:27.9]} 29... Qxc2 {[%clk 0:01:41.2]} 30. d4 {[%clk 0:01:22.9]} 30...
Be6 {[%clk 0:01:25.2]} 31. dxe5 {[%clk 0:01:12.8]} 31... Bxb3 {[%clk 0:01:24.3]}
32. Nxb3 {[%clk 0:01:13.7]} 32... Qxb3 {[%clk 0:01:23.6]} 33. Qxf4 {[%clk
0:01:14.2]} 33... Qf7 {[%clk 0:01:17.3]} 34. Qe4 {[%clk 0:01:11.8]} 34... Bc5
{[%clk 0:01:12.2]} 35. Rf1 {[%clk 0:01:09.2]} 35... Qe6 {[%clk 0:01:11.5]} 36.
Re1 {[%clk 0:01:08.6]} 36... Rf8 {[%clk 0:01:10.2]} 37. Re2 {[%clk 0:01:07.6]}
37... b3 {[%clk 0:01:08.3]} 38. Kg2 {[%clk 0:01:07.7]} 38... Qc4 {[%clk
0:00:58.4]} 39. e6 {[%clk 0:00:38.4]} 39... Qxe4+ {[%clk 0:00:55.9]} 40. Rxe4
{[%clk 0:00:39.3]} 40... b2 {[%clk 0:00:54.1]} 41. Re1 {[%clk 0:00:39.8]} 41...
Rxf2+ {[%clk 0:00:53.9]} 42. Kg3 {[%clk 0:00:40.3]} 42... Rc2 {[%clk 0:00:53.7]}
43. Rb1 {[%clk 0:00:38.1]} 43... Ba3 {[%clk 0:00:45.9]} 44. g5 {[%clk
0:00:30.6]} 44... hxg5 {[%clk 0:00:41.4]} 45. Kg4 {[%clk 0:00:30.6]} 45... Rc1
{[%clk 0:00:41.8]} 46. e7 {[%clk 0:00:30.8]} 46... Kf7 {[%clk 0:00:41]} 0-1

[Event "Late-Titled-Tuesday-Blitz-May-28-2024"]
[Site "Chess.com"]
[Date "2024.05.28"]
[Round "1"]
[White "Mackster23"]
[Black "RichardShtivelband"]
[Result "1-0"]
[WhiteElo "2671"]
[BlackElo "2383"]
[TimeControl "180+1"]
[EndTime "14:06:49 PDT"]
[Termination "Mackster23 won by resignation"]

1. e4 {[%clk 0:02:59.5]} 1... e5 {[%clk 0:02:58.9]} 2. Nf3 {[%clk 0:02:59.6]}
2... Nc6 {[%clk 0:02:58.8]} 3. Bb5 {[%clk 0:02:59.7]} 3... a6 {[%clk 0:02:58.2]}
4. Ba4 {[%clk 0:03:00]} 4... Bc5 {[%clk 0:02:57.5]} 5. c3 {[%clk 0:02:56.4]}
5... Nge7 {[%clk 0:02:56.7]} 6. O-O {[%clk 0:02:55.8]} 6... O-O {[%clk 0:02:56]}
7. d4 {[%clk 0:02:55.5]} 7... Ba7 {[%clk 0:02:55]} 8. d5 {[%clk 0:02:50.5]} 8...
Nb8 {[%clk 0:02:52.7]} 9. Nxe5 {[%clk 0:02:50.5]} 9... d6 {[%clk 0:02:52.4]} 10.
Nd3 {[%clk 0:02:44]} 10... Ng6 {[%clk 0:02:51.7]} 11. Re1 {[%clk 0:02:34.1]}
11... f5 {[%clk 0:02:50.1]} 12. exf5 {[%clk 0:02:30.7]} 12... Bxf5 {[%clk
0:02:49.3]} 13. Be3 {[%clk 0:02:30.5]} 13... Bxe3 {[%clk 0:02:37.4]} 14. Rxe3
{[%clk 0:02:29.8]} 14... Qh4 {[%clk 0:02:34.2]} 15. g3 {[%clk 0:02:22.7]} 15...
Qh3 {[%clk 0:02:30.8]} 16. Nd2 {[%clk 0:01:56.5]} 16... Bxd3 {[%clk 0:02:19.8]}
17. Rxd3 {[%clk 0:01:56.1]} 17... Ne5 {[%clk 0:02:19.8]} 18. Rd4 {[%clk
0:01:49.6]} 18... b5 {[%clk 0:01:25.3]} 19. Rh4 {[%clk 0:01:34.1]} 19... Qf5
{[%clk 0:01:23.8]} 20. Rf4 {[%clk 0:01:33.8]} 20... Qg6 {[%clk 0:01:10.7]} 21.
Bc2 {[%clk 0:01:30]} 21... Qe8 {[%clk 0:01:02.7]} 22. Rxf8+ {[%clk 0:01:27.3]}
22... Qxf8 {[%clk 0:01:02.9]} 23. f4 {[%clk 0:01:19.9]} 23... Ned7 {[%clk
0:00:59.4]} 24. Ne4 {[%clk 0:01:11]} 24... Nf6 {[%clk 0:00:58.9]} 25. Qd4 {[%clk
0:00:55.8]} 25... Nbd7 {[%clk 0:00:56.9]} 26. Ng5 {[%clk 0:00:52.7]} 26... Nb6
{[%clk 0:00:50.5]} 27. Re1 {[%clk 0:00:48.2]} 27... Nbxd5 {[%clk 0:00:45.9]} 28.
Nxh7 {[%clk 0:00:42.5]} 28... c5 {[%clk 0:00:35.4]} 29. Qd2 {[%clk 0:00:31.2]}
29... Qf7 {[%clk 0:00:20.5]} 30. Ng5 {[%clk 0:00:28.4]} 30... Qc7 {[%clk
0:00:07.6]} 31. Be4 {[%clk 0:00:25]} 31... Nxe4 {[%clk 0:00:06.2]} 32. Qxd5+
{[%clk 0:00:24.5]} 1-0

[Event "Late-Titled-Tuesday-Blitz-May-28-2024"]
[Site "Chess.com"]
[Date "2024.05.28"]
[Round "1"]
[White "LikeWater"]
[Black "Problematique_99"]
[Result "0-1"]
[WhiteElo "2714"]
[BlackElo "2478"]
[TimeControl "180+1"]
[EndTime "14:06:52 PDT"]
[Termination "Problematique_99 won by resignation"]

1. d4 {[%clk 0:02:56.7]} 1... a6 {[%clk 0:03:00.3]} 2. e4 {[%clk 0:02:53.5]}
2... b5 {[%clk 0:03:00.9]} 3. Nf3 {[%clk 0:02:53.7]} 3... Bb7 {[%clk 0:03:01.3]}
4. Bd3 {[%clk 0:02:54.3]} 4... e6 {[%clk 0:03:01.5]} 5. O-O {[%clk 0:02:52.8]}
5... c5 {[%clk 0:03:02.1]} 6. c3 {[%clk 0:02:52.9]} 6... Nf6 {[%clk 0:03:01.2]}
7. Qe2 {[%clk 0:02:47.9]} 7... Be7 {[%clk 0:03:01.2]} 8. a4 {[%clk 0:02:42.8]}
8... O-O {[%clk 0:02:55.9]} 9. e5 {[%clk 0:02:40.8]} 9... Nd5 {[%clk 0:02:55.6]}
10. axb5 {[%clk 0:02:40.5]} 10... axb5 {[%clk 0:02:56]} 11. Rxa8 {[%clk
0:02:40.8]} 11... Bxa8 {[%clk 0:02:55.6]} 12. Bxb5 {[%clk 0:02:30.6]} 12... cxd4
{[%clk 0:02:54.2]} 13. Nxd4 {[%clk 0:02:24.3]} 13... d6 {[%clk 0:02:47.4]} 14.
exd6 {[%clk 0:02:15.4]} 14... Qxd6 {[%clk 0:02:48.3]} 15. Rd1 {[%clk 0:02:14.3]}
15... Rd8 {[%clk 0:02:34.9]} 16. Nf3 {[%clk 0:02:11.2]} 16... Nf4 {[%clk
0:02:30.8]} 17. Qd2 {[%clk 0:01:59.7]} 17... Qb6 {[%clk 0:02:07.1]} 18. Qxd8+
{[%clk 0:01:43.5]} 18... Bxd8 {[%clk 0:02:07.1]} 19. Be3 {[%clk 0:01:43.5]}
19... Qa5 {[%clk 0:01:23.8]} 20. b4 {[%clk 0:01:42.3]} 20... Qc7 {[%clk
0:01:06.9]} 21. Bxf4 {[%clk 0:01:42.5]} 21... Qc8 {[%clk 0:01:04.8]} 22. Nbd2
{[%clk 0:01:21.7]} 22... Bf6 {[%clk 0:00:53.4]} 23. Nc4 {[%clk 0:01:12.3]} 23...
Bxf3 {[%clk 0:00:47.8]} 24. gxf3 {[%clk 0:01:13.2]} 24... Qb7 {[%clk 0:00:43.5]}
25. Bxb8 {[%clk 0:00:41.1]} 25... Qxb5 {[%clk 0:00:39.6]} 26. Ne5 {[%clk
0:00:18.7]} 26... Qxb8 {[%clk 0:00:33.1]} 27. Nd7 {[%clk 0:00:11.7]} 27... Qf4
{[%clk 0:00:25.7]} 28. Kg2 {[%clk 0:00:09.3]} 28... Qg5+ {[%clk 0:00:21.6]} 29.
Kf1 {[%clk 0:00:09.1]} 29... Qb5+ {[%clk 0:00:19.9]} 30. Kg2 {[%clk 0:00:09]}
30... h5 {[%clk 0:00:19.9]} 31. Nxf6+ {[%clk 0:00:07.3]} 31... gxf6 {[%clk
0:00:20.8]} 32. Rc1 {[%clk 0:00:07.3]} 32... Qg5+ {[%clk 0:00:20.7]} 0-1